bitfinex/quotes_BTCUSD_20250119
["timestamp","ask_amount","ask_price","bid_price","bid_amount"]
[1737272177125,0.221819,105020.0,105010.0,0.095229]
[1737272177770,0.14575747,105020.0,105010.0,0.095229]
[1737272178910,0.14575747,105020.0,105010.0,0.1107182]
[1737272180188,0.24097647,105020.0,105010.0,0.1226533]
[1737272180387,0.22696035,105020.0,105010.0,0.1226533]
[1737272180600,0.14575747,105020.0,105010.0,0.1226533]
[1737272180919,0.22696035,105020.0,105010.0,0.0274243]
[1737272181121,0.32217935,105020.0,105010.0,0.0274243]
[1737272181526,0.24097647,105020.0,105010.0,0.00595758]
[1737272181729,0.32217935,105020.0,105010.0,0.00595758]
[1737272181958,0.32217935,105020.0,105010.0,0.00570358]
[1737272182892,0.51262435,105020.0,105000.0,0.285712]
[1737272183093,0.43142147,105020.0,105000.0,0.285712]
[1737272183291,0.87633005,105020.0,105000.0,0.285712]
[1737272183493,1.00359721,105020.0,105000.0,0.285712]
[1737272184144,0.81315221,105020.0,105000.0,0.285712]
[1737272184350,0.51624266,105020.0,105000.0,0.285712]
[1737272184494,0.70668766,105020.0,105000.0,0.285712]
[1737272184700,0.095229,105010.0,105000.0,0.285712]
[1737272185662,0.69267154,105020.0,105000.0,0.285712]
[1737272185663,0.78789754,105020.0,105000.0,0.285712]
[1737272186249,0.59745254,105020.0,105000.0,0.285712]
[1737272186471,0.7247197,105020.0,105000.0,0.285712]
[1737272186666,0.7247197,105020.0,105010.0,0.095229]
[1737272186871,0.64351682,105020.0,105010.0,0.095229]
[1737272187152,0.218238,105000.0,104990.0,0.0004283]
[1737272187355,0.53048169,105000.0,104990.0,0.0004283]
[1737272187554,0.72095869,105000.0,104980.0,0.09626606]
[1737272187768,0.095247,104990.0,104980.0,0.00101206]
[1737272187967,0.095247,104990.0,104980.0,0.00015959]
[1737272188578,0.18006819,104990.0,104980.0,0.00015959]
[1737272189201,0.18006819,104990.0,104980.0,0.09541559]
[1737272189582,0.21208835,104990.0,104980.0,0.09541559]
[1737272192596,0.51803823,104990.0,104980.0,0.09541559]
[1737272192805,0.40783535,104990.0,104980.0,0.09541559]
[1737272193001,0.30458835,104990.0,104980.0,0.09541559]
[1737272193213,0.39983535,104990.0,104980.0,0.09541559]
[1737272193384,0.1295,104990.0,104980.0,0.09541559]
[1737272193598,0.5116123,104990.0,104980.0,0.09541559]
[1737272194695,0.5116123,104990.0,104980.0,0.09513937]
[1737272196349,0.63884873,104990.0,104980.0,0.09513937]
[1737272197577,0.73409573,104990.0,104980.0,0.09513937]
[1737272199138,0.73409573,104990.0,104980.0,0.09556777]
[1737272199368,0.73499537,104990.0,104980.0,0.09556777]
[1737272199833,0.91543906,104990.0,104980.0,0.0004284]
[1737272200010,0.93423618,104990.0,104980.0,0.0004284]
[1737272200187,0.88820263,104990.0,104980.0,0.0004284]
[1737272200621,0.88815319,104990.0,104980.0,0.0004284]
[1737272201220,0.76100479,104990.0,104980.0,0.0004284]
[1737272204561,1.04783918,104990.0,104980.0,0.0004284]
[1737272204887,0.8666363,104990.0,104980.0,0.0004284]
[1737272205337,0.94783918,104990.0,104980.0,0.0004284]
[1737272205532,0.94783918,104990.0,104980.0,0.0956844]
[1737272205759,1.04783918,104990.0,104980.0,0.0004284]
[1737272205981,0.94783918,104990.0,104980.0,0.0004284]
[1737272206188,0.8666363,104990.0,104980.0,0.0004284]
[1737272206974,0.8666363,104990.0,104980.0,0.0956844]
[1737272207563,0.57980191,104990.0,104980.0,0.0956844]
[1737272208738,0.57980191,104990.0,104980.0,0.0004284]
[1737272209499,0.57980191,104990.0,104980.0,0.0956844]
[1737272209695,0.57980191,104990.0,104980.0,0.0004284]
[1737272210995,0.4805611,104990.0,104980.0,0.0004284]
[1737272211200,0.4805611,104990.0,104980.0,0.0956844]
[1737272213854,0.3853141,104990.0,104980.0,0.0956844]
[1737272214065,0.25586354,104990.0,104980.0,0.0956844]
[1737272214897,0.213073,104990.0,104980.0,0.0956844]
[1737272215743,0.38280489,104990.0,104980.0,0.0956844]
[1737272216394,0.38280489,104990.0,104980.0,0.10166238]
[1737272216776,0.51010861,104990.0,104980.0,0.10166238]
[1737272217340,0.51010861,104990.0,104980.0,0.0956844]
[1737272218077,0.38280489,104990.0,104980.0,0.0956844]
[1737272218927,0.213073,104990.0,104980.0,0.0956844]
[1737272219534,0.213073,104990.0,104980.0,0.10166758]
[1737272219916,0.52634793,104990.0,104980.0,0.10166758]
[1737272220777,0.38279622,104990.0,104980.0,0.10166758]
[1737272220978,0.38279622,104990.0,104980.0,0.50731127]
[1737272221186,0.38279622,104990.0,104980.0,0.56209816]
[1737272221801,0.38279622,104990.0,104980.0,0.81209816]
[1737272222026,0.38279622,104990.0,104980.0,0.81507639]
[1737272222231,0.08577226,104990.0,104980.0,0.81507639]
[1737272222662,0.08577226,104990.0,104980.0,0.83662504]
[1737272222902,0.08577226,104990.0,104980.0,0.80603815]
[1737272223116,0.00089964,104990.0,104980.0,0.80603815]
[1737272223318,0.00089964,104990.0,104980.0,0.55603815]
[1737272223522,0.00089964,104990.0,104980.0,0.27619446]
[1737272223731,0.00089964,104990.0,104980.0,0.12619446]
[1737272223931,0.00089964,104990.0,104980.0,0.13575781]
[1737272225079,0.38280441,104990.0,104980.0,0.13575781]
[1737272225280,0.38280441,104990.0,104980.0,0.13277958]
[1737272225455,0.38280441,104990.0,104980.0,0.10166758]
[1737272226839,0.38280441,104990.0,104980.0,0.43211127]
[1737272227058,0.38280441,104990.0,104980.0,0.35090839]
[1737272227700,0.38280441,104990.0,104980.0,0.36046136]
[1737272228040,0.21308119,104990.0,104980.0,0.36046136]
[1737272228939,0.08577226,104990.0,104980.0,0.36046136]
[1737272231333,0.08577226,104990.0,104980.0,0.44166424]
[1737272231946,0.08577226,104990.0,104980.0,0.45360505]
[1737272232155,0.00089964,104990.0,104980.0,0.45360505]
[1737272235154,0.00089964,104990.0,104980.0,0.37240217]
[1737272235765,0.08339964,104990.0,104980.0,0.37240217]
[1737272236402,0.16827226,104990.0,104980.0,0.37240217]
[1737272236537,0.16827226,104990.0,104980.0,0.36046136]
[1737272236744,0.16827226,104990.0,104980.0,0.21046136]
[1737272237562,0.16827226,104990.0,104980.0,0.11122055]
[1737272238677,0.29558119,104990.0,104980.0,0.11122055]
[1737272238835,0.21308119,104990.0,104980.0,0.28211127]
[1737272239427,0.21308119,104990.0,104980.0,0.20090839]
[1737272240559,0.08577226,104990.0,104980.0,0.20090839]
[1737272240982,0.08577226,104990.0,104980.0,0.2104663]
[1737272245091,0.08577226,104990.0,104980.0,0.29166918]
[1737272246752,0.08577226,104990.0,104980.0,0.2104663]
[1737272248150,0.16627226,104990.0,104980.0,0.2104663]
[1737272248354,0.21427226,104990.0,104980.0,0.2104663]
[1737272249915,0.51130441,104990.0,104980.0,0.2104663]
[1737272251354,0.51130441,104990.0,104980.0,0.20090839]
[1737272251980,0.72347777,104990.0,104980.0,0.20090839]
[1737272253640,0.63860515,104990.0,104980.0,0.20090839]
[1737272254061,0.63860515,104990.0,104980.0,0.21048464]
[1737272255222,0.63860515,104990.0,104980.0,0.11480024]
[1737272255454,0.72353464,104990.0,104980.0,0.21005624]
[1737272256333,0.63860515,104990.0,104980.0,0.21005624]
[1737272257892,0.73385215,104990.0,104980.0,0.01555943]
[1737272258106,0.81505503,104990.0,104980.0,0.01555943]
[1737272258525,0.73385215,104990.0,104980.0,0.01555943]
[1737272259372,0.604196,104980.0,104960.0,0.29580655]
[1737272259560,0.604196,104980.0,104960.0,0.29590146]
[1737272261055,0.604196,104980.0,104960.0,0.29230344]
[1737272261256,0.413675,104980.0,104960.0,0.48285144]
[1737272261458,0.38202943,104970.0,104960.0,0.29230344]
[1737272262335,0.50937257,104970.0,104960.0,0.29230344]
[1737272264424,0.67363733,104970.0,104960.0,0.29230344]
[1737272265062,0.76890233,104970.0,104960.0,0.29230344]
[1737272265261,0.67363733,104970.0,104960.0,0.28632521]
[1737272269134,0.46139876,104970.0,104960.0,0.28632521]
[1737272272064,0.48083078,104970.0,104960.0,0.28632521]
[1737272272487,0.52933078,104970.0,104960.0,0.28632521]
[1737272273664,0.74156935,104970.0,104960.0,0.28632521]
[1737272274471,0.74105571,104970.0,104960.0,0.28632521]
[1737272275083,0.72162369,104970.0,104960.0,0.28632521]
[1737272275929,0.3401079,104970.0,104960.0,0.28632521]
[1737272276577,0.3401079,104970.0,104960.0,0.29229823]
[1737272276825,0.1279,104970.0,104960.0,0.29229823]
[1737272277600,0.21276476,104970.0,104960.0,0.29229823]
[1737272279516,0.3401079,104970.0,104960.0,0.29229823]
[1737272280330,0.21276476,104970.0,104960.0,0.29229823]
[1737272284638,0.21276476,104970.0,104960.0,0.30186637]
[1737272287122,0.3401079,104970.0,104960.0,0.30484564]
[1737272288819,0.3401079,104970.0,104960.0,0.30186637]
[1737272289196,0.50981838,104970.0,104960.0,0.30186637]
[1737272291132,0.72205695,104970.0,104960.0,0.30186637]
[1737272291963,0.72205695,104970.0,104960.0,0.29229823]
[1737272292163,0.63719219,104970.0,104960.0,0.29229823]
[1737272292773,0.50984905,104970.0,104960.0,0.29229823]
[1737272294198,0.83631693,104970.0,104960.0,0.00649623]
[1737272294399,0.98624152,104970.0,104960.0,0.00052321]
[1737272294599,0.60429247,104970.0,104960.0,0.00052321]
[1737272294807,0.85897876,104970.0,104960.0,0.09579721]
[1737272295005,0.62785129,104970.0,104960.0,0.09579721]
[1737272295399,0.4787503,104970.0,104960.0,0.09579721]
[1737272295605,0.62867489,104970.0,104960.0,0.09579721]
[1737272295961,0.97435971,104970.0,104960.0,0.09544933]
[1737272296105,0.82443512,104970.0,104960.0,0.09544933]
[1737272296333,0.97435971,104970.0,104960.0,0.09544933]
[1737272296563,0.82443512,104970.0,104960.0,0.09544933]
[1737272296756,0.3739886,104970.0,104960.0,0.09544933]
[1737272296960,0.22406401,104970.0,104960.0,0.09544933]
[1737272297733,0.62878508,104970.0,104960.0,0.09544933]
[1737272297983,0.47886049,104970.0,104960.0,0.09544933]
[1737272298186,0.62878508,104970.0,104960.0,0.09544933]
[1737272299395,0.47886049,104970.0,104960.0,0.09544933]
[1737272299590,0.90922877,104970.0,104960.0,0.00017533]
[1737272300884,1.37956034,104970.0,104960.0,0.00017533]
[1737272302341,0.94126668,104970.0,104960.0,0.00017533]
[1737272302983,1.37956034,104970.0,104960.0,0.00017533]
[1737272305934,1.20489534,104970.0,104950.0,0.285847]
[1737272306142,0.220274,104960.0,104950.0,0.00014966]
[1737272306384,0.220274,104960.0,104950.0,0.09543266]
[1737272306817,0.220274,104960.0,104950.0,0.00014966]
[1737272307352,0.47521943,104960.0,104950.0,0.00014966]
[1737272311693,0.76205382,104960.0,104950.0,0.00014966]
[1737272312301,0.78087668,104960.0,104950.0,0.00014966]
[1737272312656,0.87514629,104960.0,104940.0,0.47607702]
[1737272312854,0.87519588,104960.0,104940.0,0.47607702]
[1737272313521,0.69561914,104950.0,104940.0,0.28549302]
[1737272314347,0.79090214,104950.0,104940.0,0.28549302]
[1737272315053,0.5526257,104950.0,104940.0,0.28549302]
[1737272316411,0.4573427,104950.0,104940.0,0.28549302]
[1737272318027,0.5526257,104950.0,104940.0,0.28549302]
[1737272318263,0.4573427,104950.0,104940.0,0.28592122]
[1737272318464,0.5526257,104950.0,104940.0,0.28592122]
[1737272318667,0.4573427,104950.0,104940.0,0.28592122]
[1737272319259,0.5525857,104950.0,104940.0,0.28592122]
[1737272319464,0.67991155,104950.0,104940.0,0.28592122]
[1737272320257,0.58462855,104950.0,104940.0,0.28592122]
[1737272321305,0.67991155,104950.0,104940.0,0.28592122]
[1737272321524,0.58462855,104950.0,104940.0,0.28592122]
[1737272323475,0.50942855,104950.0,104940.0,0.46659755]
[1737272324078,0.50942855,104950.0,104940.0,0.38516203]
[1737272324288,0.59431604,104950.0,104940.0,0.38814178]
[1737272325055,0.59431604,104950.0,104940.0,0.40370651]
[1737272325386,0.21316215,104960.0,104950.0,0.095283]
[1737272326247,0.21316215,104960.0,104950.0,0.10126889]
[1737272327193,0.21316215,104960.0,104950.0,0.2005097]
[1737272327312,0.3829892,104960.0,104950.0,0.2005097]
[1737272330356,0.21316215,104960.0,104950.0,0.21008472]
[1737272331676,0.21316215,104960.0,104950.0,0.2005097]
[1737272332804,0.3829892,104960.0,104950.0,0.2009379]
[1737272336645,0.51040321,104960.0,104950.0,0.2009379]
[1737272337403,0.51040321,104960.0,104950.0,0.26103493]
[1737272339535,0.38307678,104960.0,104950.0,0.26103493]
[1737272341039,0.59537828,104960.0,104950.0,0.26103493]
[1737272341810,0.59537828,104960.0,104950.0,0.2009379]
[1737272342838,0.38307678,104960.0,104950.0,0.2009379]
[1737272344200,0.38307678,104960.0,104950.0,0.26103493]
[1737272344423,0.38307678,104960.0,104950.0,0.2009379]
[1737272344626,0.38307678,104960.0,104950.0,0.26198767]
[1737272344782,0.38307678,104960.0,104950.0,0.42060275]
[1737272344992,0.21324973,104960.0,104950.0,0.42060275]
[1737272346092,0.00094881,104960.0,104950.0,0.42060275]
[1737272346397,0.00094881,104960.0,104950.0,0.42358214]
[1737272347787,0.00094881,104960.0,104950.0,0.50258214]
[1737272348090,0.00094881,104960.0,104950.0,0.52678214]
[1737272348522,0.00094881,104960.0,104950.0,0.54830826]
[1737272349466,0.00094881,104960.0,104950.0,0.46401123]
[1737272349921,0.00094881,104960.0,104950.0,0.54538313]
[1737272350339,0.00094881,104960.0,104950.0,0.46320499]
[1737272350691,0.00094881,104960.0,104950.0,0.38420499]
[1737272350900,0.00094881,104960.0,104950.0,0.37463846]
[1737272352340,0.00094881,104960.0,104950.0,0.45601036]
[1737272355680,0.00094881,104960.0,104950.0,0.37463846]
[1737272359141,0.08364881,104960.0,104950.0,0.37463846]
[1737272360145,0.08364881,104960.0,104950.0,0.36267887]
[1737272360710,0.08364881,104960.0,104950.0,0.21267887]
[1737272362106,0.08364881,104960.0,104950.0,0.20969948]
[1737272362510,0.13284881,104960.0,104950.0,0.20969948]
[1737272362720,0.21782388,104960.0,104950.0,0.20969948]
[1737272365991,0.34514973,104960.0,104950.0,0.20969948]
[1737272368705,0.61025078,104960.0,104950.0,0.11045867]
[1737272368902,0.51497678,104960.0,104950.0,0.11045867]
[1737272369308,0.51497678,104960.0,104950.0,0.10089085]
[1737272369529,0.64230321,104960.0,104950.0,0.10089085]
[1737272370437,0.51497736,104960.0,104950.0,0.10089085]
[1737272373906,0.51497736,104960.0,104950.0,0.20013166]
[1737272374788,0.51497736,104960.0,104950.0,0.20970049]
[1737272375195,0.72719504,104960.0,104950.0,0.20970049]
[1737272376333,0.51489354,104960.0,104950.0,0.20970049]
[1737272377066,0.38299354,104960.0,104950.0,0.20970049]
[1737272377263,0.38299354,104960.0,104950.0,0.29107239]
[1737272377803,0.38299354,104960.0,104950.0,0.29405179]
[1737272377935,0.08583588,104960.0,104950.0,0.45601477]
[1737272379061,0.00094881,104960.0,104950.0,0.45601477]
[1737272379852,0.00090881,104960.0,104950.0,0.45601477]
[1737272380917,0.00090881,104960.0,104950.0,0.43185287]
[1737272381121,0.00090881,104960.0,104950.0,0.37464287]
[1737272381351,0.00090881,104960.0,104950.0,0.45601477]
[1737272382562,0.00090881,104960.0,104950.0,0.52798477]
[1737272384513,0.00090881,104960.0,104950.0,0.5375513]
[1737272385325,0.00090881,104960.0,104950.0,0.3746794]
[1737272385732,0.00090881,104960.0,104950.0,0.3839621]
[1737272385960,0.00090881,104960.0,104950.0,0.37439557]
[1737272386165,0.00090881,104960.0,104950.0,0.45576747]
[1737272389744,0.00090881,104960.0,104950.0,0.4538931]
[1737272390170,0.00090881,104960.0,104950.0,0.3725212]
[1737272391078,0.08579588,104960.0,104950.0,0.3725212]
[1737272392007,0.00090881,104960.0,104950.0,0.3725212]
[1737272394396,0.00090881,104960.0,104950.0,0.4538931]
[1737272394808,0.00090881,104960.0,104950.0,0.4509137]
[1737272395008,0.00090881,104960.0,104950.0,0.45389297]
[1737272395545,0.00090881,104960.0,104950.0,0.43260594]
[1737272398042,0.08579588,104960.0,104950.0,0.43260594]
[1737272399220,0.00090881,104960.0,104950.0,0.43260594]
[1737272400444,0.00090881,104960.0,104950.0,0.40508824]
[1737272401080,0.00090881,104960.0,104950.0,0.44220082]
[1737272405503,0.00090881,104960.0,104950.0,0.44210082]
[1737272408157,0.00090881,104960.0,104950.0,0.37273325]
[1737272408158,0.07590881,104960.0,104950.0,0.37273325]
[1737272408385,0.12500881,104960.0,104950.0,0.37273325]
[1737272409213,0.12500881,104960.0,104950.0,0.43281812]
[1737272410055,0.12500881,104960.0,104950.0,0.37273325]
[1737272410782,0.12500881,104960.0,104950.0,0.36315339]
[1737272411411,0.50705354,104960.0,104950.0,0.36315339]
[1737272418410,0.50654748,104960.0,104950.0,0.36315339]
[1737272418939,0.71884898,104960.0,104950.0,0.36315339]
[1737272419990,0.71884898,104960.0,104950.0,0.44456702]
[1737272420199,0.64384898,104960.0,104950.0,0.44456702]
[1737272420786,0.26172043,104960.0,104950.0,0.44456702]
[1737272420985,0.26172043,104960.0,104950.0,0.45414688]
[1737272421933,0.13438982,104960.0,104950.0,0.45414688]
[1737272422552,0.08528982,104960.0,104950.0,0.45414688]
[1737272422960,0.08528982,104960.0,104950.0,0.45974688]
[1737272424207,0.00040275,104960.0,104950.0,0.45974688]
[1737272425018,0.00040275,104960.0,104950.0,0.37833325]
[1737272426286,0.00040275,104960.0,104950.0,0.45974688]
[1737272427696,0.00040275,104960.0,104950.0,0.46934024]
[1737272429020,0.00040275,104960.0,104950.0,0.38792661]
[1737272429167,0.00040275,104960.0,104950.0,0.46934024]
[1737272434965,0.00040275,104960.0,104950.0,0.64954024]
[1737272435405,0.00040275,104960.0,104950.0,0.56934024]
[1737272440023,0.08359841,104970.0,104950.0,0.48636785]
[1737272440234,0.08359841,104970.0,104960.0,0.27592844]
[1737272440643,0.16848548,104970.0,104960.0,0.27890771]
[1737272440844,0.08568548,104970.0,104960.0,0.27890771]
[1737272441046,0.08568548,104970.0,104960.0,0.30644043]
[1737272441248,0.00075841,104970.0,104960.0,0.30644043]
[1737272442332,0.00075841,104970.0,104960.0,0.30088774]
[1737272442589,0.00075841,104970.0,104960.0,0.3104676]
[1737272445295,0.00075841,104970.0,104960.0,0.30088774]
[1737272445618,0.00075841,104970.0,104960.0,0.27954426]
[1737272446029,0.07975841,104970.0,104960.0,0.25201154]
[1737272446467,0.07975841,104970.0,104960.0,0.27953671]
[1737272447451,0.07975841,104970.0,104960.0,0.21946656]
[1737272450369,0.17975841,104970.0,104960.0,0.21946656]
[1737272452613,0.17975841,104970.0,104960.0,0.22904379]
[1737272454701,0.17975841,104970.0,104960.0,0.31041834]
[1737272458745,0.17975841,104970.0,104960.0,0.22904379]
[1737272459212,0.17975841,104970.0,104960.0,0.22947179]
[1737272459862,0.22955841,104970.0,104960.0,0.22947179]
[1737272460460,0.22955841,104970.0,104960.0,0.21989456]
[1737272461886,0.44177609,104970.0,104960.0,0.21989456]
[1737272463482,0.44177609,104970.0,104960.0,0.36989456]
[1737272463878,0.61160314,104970.0,104960.0,0.36989456]
[1737272465902,0.82390464,104970.0,104960.0,0.36989456]
[1737272469549,0.82390464,104970.0,104960.0,0.42997787]
[1737272470156,0.61160314,104970.0,104960.0,0.42997787]
[1737272471814,0.61160314,104970.0,104960.0,0.33546306]
[1737272472014,0.61160314,104970.0,104960.0,0.43073706]
[1737272473905,0.53260314,104970.0,104960.0,0.43073706]
[1737272474188,0.31364548,104970.0,104960.0,0.43073706]
[1737272475429,0.23544548,104970.0,104960.0,0.43073706]
[1737272475908,0.31364548,104970.0,104960.0,0.37065375]
[1737272477106,0.31364548,104970.0,104960.0,0.43073706]
[1737272482725,0.31364548,104970.0,104960.0,0.43023371]
[1737272483626,0.3111209,104970.0,104960.0,0.43023371]
[1737272485466,0.3111209,104970.0,104960.0,0.43981094]
[1737272485674,0.3111209,104970.0,104960.0,0.37972763]
[1737272486057,0.3111209,104970.0,104960.0,0.43981094]
[1737272490709,0.3111209,104970.0,104960.0,0.43023371]
[1737272490916,0.43845151,104970.0,104960.0,0.43023371]
[1737272494081,0.60827856,104970.0,104960.0,0.43023371]
[1737272494568,0.60917715,104970.0,104960.0,0.43023371]
[1737272495012,0.4393501,104970.0,104960.0,0.43023371]
[1737272500114,0.60917715,104970.0,104960.0,0.43023371]
[1737272500588,0.60665257,104970.0,104960.0,0.43023371]
[1737272501082,0.60665257,104970.0,104960.0,0.3701504]
[1737272502308,0.60661257,104970.0,104960.0,0.3701504]
[1737272502850,0.81891407,104970.0,104960.0,0.3701504]
[1737272503720,0.734027,104970.0,104960.0,0.3701504]
[1737272504485,0.734027,104970.0,104960.0,0.12570309]
[1737272504747,0.88937531,104970.0,104960.0,0.03042909]
[1737272505943,0.66675054,104970.0,104960.0,0.03042909]
[1737272506183,0.66675054,104970.0,104960.0,0.02795317]
[1737272506391,0.66675054,104970.0,104960.0,0.000428]
[1737272507045,0.98036009,104970.0,104960.0,0.000428]
[1737272508017,0.92027678,104970.0,104960.0,0.000428]
[1737272508236,0.60666723,104970.0,104960.0,0.095702]
[1737272508435,0.60666723,104970.0,104960.0,0.000428]
[1737272509464,0.60666723,104970.0,104960.0,0.095702]
[1737272509687,0.60666723,104970.0,104960.0,0.000428]
[1737272509987,0.86136782,104970.0,104960.0,0.000428]
[1737272510190,0.92145113,104970.0,104960.0,0.000428]
[1737272510919,0.86136782,104970.0,104960.0,0.000428]
[1737272511831,0.57453343,104970.0,104960.0,0.000428]
[1737272523786,0.57200885,104970.0,104960.0,0.000428]
[1737272528393,0.68434285,104970.0,104950.0,0.2666842]
[1737272528525,0.0781,104960.0,104950.0,0.2666842]
[1737272529313,0.67171003,104960.0,104950.0,0.2666842]
[1737272529595,0.67171003,104960.0,104950.0,0.28221114]
[1737272530956,0.5869086,104960.0,104950.0,0.28221114]
[1737272534530,0.5869086,104960.0,104950.0,0.28519085]
[1737272535010,0.5869086,104960.0,104950.0,0.29715952]
[1737272535602,0.59630586,104960.0,104950.0,0.29715952]
[1737272536131,0.59630586,104960.0,104950.0,0.28519085]
[1737272536421,0.64420586,104960.0,104950.0,0.28519085]
[1737272538686,0.6348086,104960.0,104950.0,0.28519085]
[1737272539481,0.6348086,104960.0,104950.0,0.28561885]
[1737272539680,0.63570741,104960.0,104950.0,0.29758802]
[1737272541385,0.50850526,104960.0,104950.0,0.29758802]
[1737272546109,0.33890239,104960.0,104950.0,0.29758802]
[1737272548089,0.3815994,104960.0,104950.0,0.29758802]
[1737272549155,0.69518213,104960.0,104950.0,0.29758802]
[1737272550245,0.3815994,104960.0,104950.0,0.29758802]
[1737272556411,0.66843379,104960.0,104950.0,0.29758802]
[1737272557030,0.66843379,104960.0,104950.0,0.29460831]
[1737272557260,0.66843379,104960.0,104950.0,0.39384912]
[1737272557261,0.59033379,104960.0,104950.0,0.39384912]
[1737272557461,0.3034994,104960.0,104950.0,0.39384912]
[1737272559192,0.3034994,104960.0,104950.0,0.39682877]
[1737272559498,0.3851994,104960.0,104950.0,0.29758796]
[1737272560075,0.54055671,104960.0,104950.0,0.03090376]
[1737272561263,0.57269051,104960.0,104950.0,0.03090376]
[1737272561555,0.57269051,104960.0,104950.0,0.009379]
[1737272561729,0.57269051,104960.0,104950.0,0.00639935]
[1737272563568,0.57265051,104960.0,104950.0,0.00639935]
[1737272564210,0.57265051,104960.0,104950.0,0.000428]
[1737272567958,1.01065787,104960.0,104950.0,0.000428]
[1737272568912,1.10989868,104960.0,104950.0,0.000428]
[1737272569114,1.23289868,104960.0,104950.0,0.000428]
[1737272581203,1.23037386,104960.0,104950.0,0.000428]
[1737272582729,1.10737386,104960.0,104950.0,0.000428]
[1737272584841,0.94804974,104960.0,104950.0,0.095711]
[1737272585042,0.72574056,104960.0,104950.0,0.095711]
[1737272585662,0.25534163,104960.0,104950.0,0.095711]
[1737272585871,0.25534163,104960.0,104950.0,0.36273512]
[1737272586310,0.25534163,104960.0,104950.0,0.28182318]
[1737272586718,0.50984201,104960.0,104950.0,0.28182318]
[1737272587247,0.50984201,104960.0,104950.0,0.19213786]
[1737272587654,0.50984201,104960.0,104950.0,0.11123786]
[1737272589421,0.38260621,104960.0,104950.0,0.11123786]
[1737272589661,0.38260621,104960.0,104950.0,0.01595486]
[1737272589662,0.66456352,104960.0,104950.0,0.01595486]
[1737272589872,0.60448021,104960.0,104950.0,0.01595486]
[1737272590070,0.60448021,104960.0,104950.0,0.11123786]
[1737272590348,0.60448021,104960.0,104950.0,0.01595486]
[1737272590552,0.74753498,104960.0,104950.0,0.01595486]
[1737272590685,0.74753498,104960.0,104950.0,0.00639937]
[1737272591450,0.47721563,104960.0,104950.0,0.00639937]
[1737272592105,0.47721563,104960.0,104950.0,0.000428]
[1737272595730,0.38194163,104960.0,104950.0,0.095711]
[1737272595929,0.47721563,104960.0,104950.0,0.000428]
[1737272596078,0.47721563,104960.0,104950.0,0.10168023]
[1737272597400,0.49587181,104960.0,104950.0,0.095711]
[1737272597611,0.49587181,104960.0,104950.0,0.000428]
[1737272597847,0.55595512,104960.0,104950.0,0.095711]
[1737272598274,0.40059781,104960.0,104950.0,0.000428]
[1737272598453,0.55595512,104960.0,104950.0,0.000428]
[1737272599712,0.55595512,104960.0,104950.0,0.095711]
[1737272600440,0.49587181,104960.0,104950.0,0.095711]
[1737272600852,0.40059781,104960.0,104950.0,0.095711]
[1737272601644,0.32019781,104960.0,104950.0,0.095711]
[1737272602055,0.30154163,104960.0,104950.0,0.095711]
[1737272602269,0.25534163,104960.0,104950.0,0.16176361]
[1737272602421,0.25534163,104960.0,104950.0,0.1016803]
[1737272602874,0.25534163,104960.0,104950.0,0.51520442]
[1737272603449,0.50903199,104960.0,104950.0,0.52475727]
[1737272604522,0.50853375,104960.0,104950.0,0.53669883]
[1737272605408,0.5932108,104960.0,104950.0,0.53669883]
[1737272606225,0.38148864,104960.0,104950.0,0.53669883]
[1737272607070,0.38148864,104960.0,104950.0,0.52475727]
[1737272610325,0.38148864,104960.0,104950.0,0.49795727]
[1737272616867,0.38148864,104960.0,104950.0,0.42055727]
[1737272619009,0.38148864,104960.0,104950.0,0.4324967]
[1737272619398,0.38148864,104960.0,104950.0,0.53669244]
[1737272619592,0.21211091,104960.0,104950.0,0.5115967]
[1737272619806,0.21211091,104960.0,104950.0,0.52117393]
[1737272620394,0.21211091,104960.0,104950.0,0.52415327]
[1737272620629,0.00040057,104960.0,104950.0,0.52415327]
[1737272623932,0.00040057,104960.0,104950.0,0.51457604]
[1737272624159,0.00036057,104960.0,104950.0,0.51457604]
[1737272626729,0.00036057,104960.0,104950.0,0.37539273]
[1737272626984,0.00036057,104960.0,104950.0,0.43547604]
[1737272627190,0.00180057,104960.0,104950.0,0.43547604]
[1737272627359,0.00180057,104960.0,104950.0,0.51197604]
[1737272628807,0.00180057,104960.0,104950.0,0.52155327]
[1737272629005,0.00180057,104960.0,104950.0,0.54835327]
[1737272629998,0.00180057,104960.0,104950.0,0.54537393]
[1737272630956,0.00180057,104960.0,104950.0,0.54431]
[1737272631508,0.00180057,104960.0,104950.0,1.16613]
[1737272631763,0.00180057,104960.0,104950.0,1.19122574]
[1737272632166,0.00180057,104960.0,104950.0,1.34122574]
[1737272632371,0.00180057,104960.0,104950.0,1.33164851]
[1737272632593,0.00180057,104960.0,104950.0,0.86704851]
[1737272632803,0.00180057,104960.0,104950.0,0.81449119]
[1737272633010,0.00180057,104960.0,104950.0,0.75483588]
[1737272633221,0.00180057,104960.0,104950.0,0.66491919]
[1737272633422,0.00180057,104960.0,104950.0,0.81491919]
[1737272633879,0.00180057,104960.0,104950.0,0.84237881]
[1737272635043,0.00180057,104960.0,104950.0,0.95259023]
[1737272635800,0.00180057,104960.0,104950.0,0.80259023]
[1737272636001,0.00180057,104960.0,104950.0,0.95259023]
[1737272636216,0.00180057,104960.0,104950.0,0.89250692]
[1737272637402,0.00180057,104960.0,104950.0,0.95259023]
[1737272637403,5.7e-07,104960.0,104950.0,0.95259023]
[1737272637607,5.7e-07,104960.0,104950.0,0.89250692]
[1737272638471,5.7e-07,104960.0,104950.0,0.89200868]
[1737272640678,5.7e-07,104960.0,104950.0,0.95209199]
[1737272641675,5.7e-07,104960.0,104950.0,0.89200868]
[1737272641832,5.7e-07,104960.0,104950.0,0.95209199]
[1737272642040,0.03688483,104970.0,104960.0,0.71272211]
[1737272642228,0.03688483,104970.0,104960.0,1.39672954]
[1737272642904,0.03688483,104970.0,104960.0,1.42418916]
[1737272643104,0.01783183,104970.0,104960.0,1.42418916]
[1737272643314,8.3e-07,104970.0,104960.0,1.42418916]
[1737272645822,8.3e-07,104970.0,104960.0,1.4337262]
[1737272646479,8.3e-07,104970.0,104960.0,1.42418916]
[1737272648112,8.3e-07,104970.0,104960.0,1.72418916]
[1737272651010,8.3e-07,104970.0,104960.0,1.72974916]
[1737272651808,8.3e-07,104970.0,104960.0,1.73918209]
[1737272655852,8.3e-07,104970.0,104960.0,1.75829881]
[1737272658422,8.3e-07,104970.0,104960.0,1.2595555]
[1737272658629,8.3e-07,104970.0,104960.0,1.23798739]
[1737272659414,8.3e-07,104970.0,104960.0,1.02234408]
[1737272659608,8.3e-07,104970.0,104960.0,1.21887067]
[1737272659818,0.08030083,104970.0,104960.0,1.21887067]
[1737272660186,0.08030083,104970.0,104960.0,1.06887067]
[1737272660720,0.08030083,104970.0,104960.0,1.21887067]
[1737272660885,0.08030083,104970.0,104960.0,1.06887067]
[1737272661081,0.08030083,104970.0,104960.0,1.21887067]
[1737272662227,0.08030083,104970.0,104960.0,1.29817738]
[1737272663251,0.08030083,104970.0,104960.0,1.29261738]
[1737272663452,0.08030083,104970.0,104960.0,1.29817738]